[Event "Sardinia World Festival-A 2024"]
[Site "Orosei"]
[Date "2024.04.30"]
[Round "4.48"]
[White "Cugia, Filippo"]
[Black "Botez, Andrea"]
[Result "1/2-1/2"]
[ECO "B27"]
[WhiteElo "1675"]
[BlackElo "1879"]
[Annotator "NA RC"]
[PlyCount "119"]
[EventDate "2024.04.26"]
[EventType "swiss"]
[EventCountry "ITA"]
[SourceTitle "playchess.com"]
[Source "ChessBase"]
[SourceQuality "1"]
[TimeControl "40/5400+30:1800+30"]

1. e4 {[%emt 0:00:02]} c5 {[%emt 0:00:11]} 2. Nf3 {[%emt 0:00:13]} g6 {[%emt 0:00:16]} 3. d4 {[%emt 0:00:07]} cxd4 {[%emt 0:00:08]} 4. Qxd4 {[%emt 0:00:07]} Nf6 {[%emt 0:00:17]} 5. Nc3 {[%emt 0:00:07]} Nc6 {[%emt 0:00:11]} 6. Qa4 {[%emt 0:00:05]} d6 {[%emt 0:01:00]} 7. e5 {[%emt 0:00:10]} dxe5 {[%emt 0:00:09]} 8. Nxe5 {[%emt 0:00:08]} Bg7 {[%emt 0:00:09]} 9. Bb5 {[%emt 0:08:18]} O-O {[%emt 0:02:42]} 10. Nxc6 {[%emt 0:00:44]} bxc6 {[%emt 0:00:06]} 11. Bxc6 {[%emt 0:00:07]} Bd7 {[%emt 0:00:21]} 12. Bxd7 {[%emt 0:01:50]} Qxd7 {[%emt 0:02:23]} 13. Qxd7 {[%emt 0:01:04]} Nxd7 {[%emt 0:00:05]} 14. O-O {[%emt 0:01:06]} Rab8 {[%emt 0:05:40]} 15. Nd5 {[%emt 0:05:45]} e6 {[%emt 0:03:39]} 16. Ne3 {[%emt 0:03:29]} Bxb2 {[%emt 0:01:53]} 17. Bxb2 {[%emt 0:00:07]} Rxb2 {[%emt 0:00:04]} 18. g3 {[%emt 0:00:37]} Rfb8 {[%emt 0:02:13]} 19. a3 {[%emt 0:05:48]} Ne5 {[%emt 0:05:28]} 20. Rfd1 {[%emt 0:01:04]} R8b7 {[%emt 0:02:50]} 21. Kg2 {[%emt 1:10:02]} h5 {[%emt 0:02:05]} 22. Rd8+ {[%emt 0:00:00]} Kg7 {[%emt 0:00:15]} 23. a4 {[%emt 0:00:00]} Rc7 {[%emt 0:03:23]} 24. h3 {[%emt 0:00:00]} Nc4 {[%emt 0:01:33]} 25. Nxc4 {[%emt 0:00:00]} Rxc4 {[%emt 0:00:06]} 26. Rd7 {[%emt 0:00:00]} Rcxc2 {[%emt 0:06:48]} 27. Rf1 {[%emt 0:00:00]} a5 {[%emt 0:00:25]} 28. Ra7 {[%emt 0:00:00]} Rc5 {[%emt 0:00:18]} 29. g4 {[%emt 0:00:00]} hxg4 {[%emt 0:00:51]} 30. hxg4 {[%emt 0:00:00]} Ra2 {[%emt 0:00:39]} 31. Rd1 {[%emt 0:00:00]} Rcc2 {[%emt 0:03:04]} 32. Rdd7 {[%emt 0:00:00]} Rxf2+ {[%emt 0:00:18]} 33. Kg3 {[%emt 0:00:00]} g5 {[%emt 0:05:56]} 34. Rxa5 {[%emt 0:00:00]} Kf6 {[%emt 0:00:33]} 35. Rd3 {[%emt 0:00:00]} Rg2+ {[%emt 0:01:17]} 36. Kh3 {[%emt 0:00:00]} Rh2+ {[%emt 0:01:57]} 37. Kg3 {[%emt 0:00:00]} Rhg2+ {[%emt 0:05:24]} 38. Kh3 {[%emt 0:00:00]} Kg6 {[%emt 0:00:11]} 39. Ra7 {[%emt 0:00:00]} Rg1 {[%emt 0:10:36]} 40. Rf3 {[%emt 0:00:00]} Rh1+ {[%emt 0:03:33]} 41. Kg3 {[%emt 0:18:16]} Rhh2 {[%emt 0:30:19]} 42. Rfxf7 {[%emt 0:01:21]} Rag2+ {[%emt 0:05:16]} 43. Kf3 {[%emt 0:00:27]} Rf2+ {[%emt 0:00:30]} 44. Kg3 {[%emt 0:00:18]} Rhg2+ {[%emt 0:00:13]} 45. Kh3 {[%emt 0:00:25]} Rxf7 {[%emt 0:00:21]} 46. Rxf7 {[%emt 0:00:26]} Ra2 {[%emt 0:00:08]} 47. Ra7 {[%emt 0:00:44]} Kf6 {[%emt 0:00:28]} 48. Ra5 {[%emt 0:00:17]} Ra3+ {[%emt 0:08:03]} 49. Kg2 {[%emt 0:00:08]} Ke7 {[%emt 0:02:11]} 50. Rxg5 {[%emt 0:00:53]} Rxa4 {[%emt 0:00:05]} 51. Kf3 {[%emt 0:00:15]} Kf6 {[%emt 0:01:05]} 52. Rb5 {[%emt 0:00:30]} Ra1 {[%emt 0:04:12]} 53. g5+ {[%emt 0:02:14]} Kf7 {[%emt 0:03:24]} 54. Re5 {[%emt 0:00:40]} Ra6 {[%emt 0:03:12]} 55. Kf4 {[%emt 0:01:09]} Kg6 {[%emt 0:00:26]} 56. Kg4 {[%emt 0:00:48]} Rd6 {[%emt 0:01:10]} 57. Kh4 {[%emt 0:01:08]} Kf7 {[%emt 0:01:18]} 58. Kg4 {[%emt 0:01:11]} Rd4+ {[%emt 0:00:31]} 59. Kf3 {[%emt 0:00:22]} Rd1 {[%emt 0:01:06]} 60. Kf2 {[%emt 0:01:36]} 1/2-1/2

[Event "Sardinia World Festival-A 2024"]
[Site "Orosei"]
[Date "2024.04.30"]
[Round "4.51"]
[White "Ferrari, Fabrizio"]
[Black "Cilenti, Giuseppe Maria"]
[Result "0-1"]
[ECO "B84"]
[WhiteElo "1595"]
[BlackElo "1574"]
[Annotator "NA RC"]
[PlyCount "64"]
[EventDate "2024.04.26"]
[EventType "swiss"]
[EventCountry "ITA"]
[SourceTitle "playchess.com"]
[Source "ChessBase"]
[SourceQuality "1"]
[TimeControl "40/5400+30:1800+30"]

1. e4 {[%emt 0:00:16]} c5 {[%emt 0:00:04]} 2. Nf3 {[%emt 0:00:19]} d6 {[%emt 0:00:41]} 3. d4 {[%emt 0:00:46]} cxd4 {[%emt 0:00:08]} 4. Nxd4 {[%emt 0:00:10]} Nf6 {[%emt 0:00:08]} 5. Nc3 {[%emt 0:00:11]} a6 {[%emt 0:00:10]} 6. Be2 {[%emt 0:02:32]} e6 {[%emt 0:05:32]} 7. O-O {[%emt 0:02:45]} Be7 {[%emt 0:02:08]} 8. f4 {[%emt 0:03:22]} Nc6 {[%emt 0:08:16]} 9. Kh1 {[%emt 0:02:54]} d5 {[%emt 0:13:39]} 10. e5 {[%emt 0:17:40]} Ne4 {[%emt 0:11:54]} 11. Be3 {[%emt 0:10:01]} Nxc3 {[%emt 0:04:50]} 12. bxc3 {[%emt 0:00:12]} O-O {[%emt 0:05:39]} 13. Bd3 {[%emt 0:03:15]} g6 {[%emt 0:03:06]} 14. Qg4 {[%emt 0:01:50]} f5 {[%emt 0:04:21]} 15. exf6 {[%emt 0:09:57]} Rxf6 {[%emt 0:04:05]} 16. Nxc6 {[%emt 0:04:03]} bxc6 {[%emt 0:00:26]} 17. Bd4 {[%emt 0:00:51]} e5 {[%emt 0:01:50]} 18. f5 {[%emt 0:09:13]} exd4 {[%emt 0:01:25]} 19. cxd4 {[%emt 0:00:59]} Kh8 {[%emt 0:03:57]} 20. Rf3 {[%emt 0:00:45]} Qf8 {[%emt 0:06:07]} 21. Raf1 {[%emt 0:01:23]} Rb8 {[%emt 0:01:53]} 22. h4 {[%emt 0:00:33]} Bxf5 {[%emt 0:03:09]} 23. Bxf5 {[%emt 0:28:03]} Rxf5 {[%emt 0:00:43]} 24. Rxf5 {[%emt 0:00:00]} gxf5 {[%emt 0:00:25]} 25. Rxf5 {[%emt 0:00:00]} Rb1+ {[%emt 0:01:08]} 26. Kh2 {[%emt 0:00:00]} Bd6+ {[%emt 0:00:28]} 27. g3 {[%emt 0:00:00]} Qg8 {[%emt 0:01:45]} 28. Rg5 {[%emt 0:00:00]} Qf8 {[%emt 0:02:20]} 29. Qd7 {[%emt 0:00:00]} Qf2+ {[%emt 0:02:12]} 30. Kh3 {[%emt 0:00:00]} Rh1+ {[%emt 0:01:21]} 31. Kg4 {[%emt 0:00:00]} Qxg3+ {[%emt 0:00:58]} 32. Kf5 {[%emt 0:00:00]} Qf4+ {[%emt 0:00:30]} 0-1

[Event "Sardinia World Festival-A 2024"]
[Site "Orosei"]
[Date "2024.04.30"]
[Round "5.1"]
[White "Fedoseev, Vladimir"]
[Black "Parkhov, Yair"]
[Result "0-1"]
[ECO "E48"]
[WhiteElo "2690"]
[BlackElo "2513"]
[Annotator "TA"]
[PlyCount "114"]
[EventDate "2024.04.26"]
[EventType "swiss"]
[EventCountry "ITA"]
[SourceTitle "playchess.com"]
[Source "ChessBase"]
[SourceQuality "1"]
[TimeControl "40/5400+30:1800+30"]

{[%evp 11,114,13,11,-4,0,0,12,6,35,5,16,14,6,1,39,30,23,12,33,28,57,62,56,52,50,41,65,67,65,67,74,78,85,87,86,83,86,78,85,85,75,74,94,65,83,82,68,79,84,75,74,75,80,84,90,72,83,72,93,79,83,60,52,47,35,43,50,0,12,0,0,0,0,-97,-98,-262,-275,-304,-307,-229,-219,-470,-461,-376,-302,-290,-287,-328,-335,-447,-424,-572,-542,-1070,-811,-29958,-29954,-5683,-5408,-29987,-29979,-29979,-29980,-29992,-29993]} 1. d4 {[%emt 0:00:04]} Nf6 {[%emt 0:02:48]} 2. c4 {[%emt 0:00:31]} e6 {[%emt 0:00:06]} 3. Nc3 {[%emt 0:00:35]} Bb4 {[%emt 0:00:06]} 4. e3 {[%emt 0:00:40]} O-O {[%emt 0:00:23]} 5. Bd3 {[%emt 0:00:02]} d5 {[%emt 0:00:34]} 6. cxd5 {[%emt 0:00:01]} exd5 {[%emt 0:00:14]} 7. a3 {[%emt 0:00:00]} Bd6 {[%emt 0:04:15]} 8. Qc2 {[%emt 0:00:06]} c5 {[%emt 0:10:24]} 9. dxc5 {[%emt 0:00:05] The position is equal.} Bxc5 {[%emt 0:00:05]} 10. Nf3 {[%emt 0:00:08]} Nc6 {[%emt 0:00:48]} 11. O-O {[%emt 0:00:08]} Bg4 {[%emt 0:04:36]} 12. Ng5 {[%emt 0:00:06]} h6 {[%emt 0:00:49]} 13. Nh7 {[%emt 0:00:04]} Nxh7 {[%emt 0:00:15]} 14. Bxh7+ {[%emt 0:00:05]} Kh8 {[%emt 0:00:04] ...g6 is the strong threat.} 15. Bf5 {[%emt 0:00:07]} Bxf5 {[%emt 0:01:46]} 16. Qxf5 {[%emt 0:00:06]} Ne7 {[%emt 0:00:25]} 17. Qh5 {[%emt 0:04:41]} Qd7 {[%emt 0:16:48]} 18. Rd1 {[%emt 0:13:13][%cal Ob2b4]} f5 {[%emt 0:03:33]} 19. Ne2 {[%emt 0:07:55]} Bd6 {[%emt 0:02:35]} 20. Bd2 {[%emt 0:01:13]} Be5 {[%emt 0:00:50]} 21. Bc3 {[%emt 0:00:07]} Bxc3 {[%emt 0:00:39]} 22. Nxc3 {[%emt 0:00:06]} Qe6 {[%emt 0:04:21]} 23. Rd4 {[%emt 0:04:31]} Rad8 {[%emt 0:00:18]} 24. Rad1 {[%emt 0:00:34]} Rd7 {[%emt 0:01:43]} 25. h4 {[%emt 0:04:11]} Rfd8 {[%emt 0:05:59]} 26. Ne2 {[%emt 0:02:03]} Kg8 {[%emt 0:05:14][%cal Bh8g8,Bg8f7,Bf7f6,Bf6g5][%mdl 32]} 27. Nf4 {[%emt 0:07:59]} Qf7 {[%emt 0:00:08]} 28. Qxf7+ {[%emt 0:01:29]} Kxf7 {[%emt 0:00:05]} 29. h5 {[%emt 0:00:10]} Rd6 {[%emt 0:01:35]} 30. Kf1 {[%emt 0:01:53]} Kf6 {[%emt 0:04:03]} 31. Ke2 {[%emt 0:01:48]} Kg5 {[%emt 0:05:44]} 32. b4 {[%emt 0:02:58]} a6 {[%emt 0:02:40]} 33. g3 {[%emt 0:09:08]} R8d7 {[%emt 0:06:47]} 34. R4d3 {[%emt 0:04:27]} Rd8 {[%emt 0:02:41]} 35. a4 {[%emt 0:06:25]} Rc8 {[%emt 0:08:01]} 36. Rd4 {[%emt 0:05:56][%cal Oe2f3]} Rc2+ {[%emt 0:00:38]} 37. Kf1 {[%emt 0:04:03][%cal Oa4a5]} Rb2 {[%emt 0:01:11]} 38. Nd3 {[%emt 0:06:05]} Ra2 {[%emt 0:00:22]} 39. a5 {[%emt 0:00:20]} (39. Rh4 $14) 39... Rc6 {[%emt 0:00:54]} 40. Nc5 {[%emt 0:02:10]} (40. Rb1 {looks sharper.} Rc4 41. b5 Rxa5 42. bxa6 bxa6 43. Rb7) 40... Kxh5 {[%emt 0:01:00]} 41. Rh4+ {[%emt 0:34:54]} Kg6 {[%emt 0:33:14]} 42. Nxb7 {[%emt 0:00:44]} (42. g4 $11 {keeps the balance.}) 42... Rcc2 $17 {[%emt 0:00:51]} 43. Rf4 {[%emt 0:02:55] [#] This move loses the game for White.} (43. Rh2 $17) 43... Kf6 $1 $19 {[%emt 0:00:00]} 44. g4 {[%emt 0:00:00]} g5 {[%emt 0:00:00]} 45. Rf3 {[%emt 0:00:00]} Kg6 {[%emt 0:00:00]} ({Inferior is} 45... Ke5 46. Nc5 $11) 46. Nc5 $2 {[%emt 0:00:00]} (46. gxf5+ Nxf5 47. Nc5) 46... fxg4 {[%emt 0:00:00]} 47. Rf8 {[%emt 0:00:00] [#]} g3 $1 {[%emt 0:00:00][%mdl 512] aiming for ...Nf5.} 48. Nd3 {[%emt 0:00:00]} gxf2 {[%emt 0:00:00]} 49. Ne5+ {[%emt 0:00:00]} Kh5 {[%emt 0:00:00]} 50. Rf3 {[%emt 0:00:00][%cal Rf3h3]} Ng6 {[%emt 0:00:00]} ({Don't do} 50... g4 51. Rf7 Rc7 (51... Ng8 $2 52. Rf4 $19) 52. Rf4 $19) 51. Nd3 {[%emt 0:00:00]} Kg4 {[%emt 0:02:27]} 52. Rf6 {[%emt 0:00:00]} Nh4 {[%emt 0:00:18]} 53. Nxf2+ {[%emt 0:00:00]} Kg3 {[%emt 0:00:28][%cal Rc2f2]} 54. Nh1+ {[%emt 0:00:00]} Kh2 {[%emt 0:00:43]} 55. Nf2 {[%emt 0:00:00]} h5 {[%emt 0:01:04] Black mates.} 56. Rxd5 {[%emt 0:00:00]} g4 {[%emt 0:00:36]} 57. Rd4 {[%emt 0:00:00]} Ng2 {[%emt 0:01:17] Weighted Error Value: White=0.63/Black=0.18 (very precise) .  Loses game:     	White=1     	---        Mistake:       	White=3     	---        Inaccurate:     	White=6     	Black=3      OK:         	White=18    	Black=15     Best:        	White=1     	Black=6      Strong:       	---       	Black=1} 0-1

[Event "Sardinia World Festival-A 2024"]
[Site "Orosei"]
[Date "2024.04.30"]
[Round "5.2"]
[White "Pichot, Alan"]
[Black "Lodici, Lorenzo"]
[Result "1-0"]
[ECO "C55"]
[WhiteElo "2644"]
[BlackElo "2565"]
[Annotator "TA"]
[PlyCount "113"]
[EventDate "2024.04.26"]
[EventType "swiss"]
[EventCountry "ITA"]
[SourceTitle "playchess.com"]
[Source "ChessBase"]
[SourceQuality "1"]
[TimeControl "40/5400+30:1800+30"]

{[%evp 39,113,-75,-77,-90,-107,-87,0,0,0,0,0,0,42,0,0,0,0,0,1,0,0,5,138,133,107,43,118,135,112,97,104,97,165,41,48,35,590,338,494,575,554,97,97,97,890,511,1078,1067,2854,2269,29953,29948,12797,12527,10808,5635,6436,6993,29970,29971,29976,29974,29978,29979,29979,29980,29979,29980,29982,29983,29982,29982,29982,29982,29982,29983]} 1. e4 {[%emt 0:01:58]} e5 {[%emt 0:00:19]} 2. Nf3 {[%emt 0:00:17]} Nc6 {[%emt 0:00:04]} 3. Bc4 {[%emt 0:00:21]} Nf6 {[%emt 0:00:10]} 4. d3 {[%emt 0:00:14]} h6 {[%emt 0:08:18]} 5. O-O {[%emt 0:00:19]} d6 {[%emt 0:00:03]} 6. a4 {[%emt 0:01:41]} g6 {[%emt 0:00:04] C55: Two Knights: 4 d3, 4 d4 exd4 5 e5 and Max Lange Attack.} 7. a5 {[%emt 0:02:22]} a6 {[%emt 0:00:59]} 8. d4 $5 {[%emt 0:00:37][%mdl 4] An interesting side line.} exd4 {[%emt 0:15:12]} 9. Nxd4 {[%emt 0:08:56]} Nxd4 $146 {[%emt 0:01:20]} ({Predecessor:} 9... Ne5 10. Bb3 c5 11. Ne2 Bg7 12. Nd2 O-O 13. Nf4 Bd7 14. Nd5 Bb5 15. Re1 c4 {1-0 Kosteniuk,A (2523)-Koneru,H (2567) Global Chess League rapid 2023 (8.4)}) 10. Qxd4 {[%emt 0:00:13]} Bg7 {[%emt 0:00:03]} 11. Nc3 {[%emt 0:01:03]} O-O {[%emt 0:00:08]} 12. Qd3 {[%emt 0:01:14]} Re8 {[%emt 0:03:30]} 13. Bd2 {[%emt 0:14:51]} Be6 {[%emt 0:02:57]} 14. Bxe6 {[%emt 0:02:55]} Rxe6 {[%emt 0:00:05]} 15. f4 {[%emt 0:00:38]} Re7 {[%emt 0:16:13]} 16. f5 {[%emt 0:06:12]} Kh7 {[%emt 0:00:15]} 17. Rae1 {[%emt 0:13:18]} Qd7 {[%emt 0:05:37]} 18. Qh3 {[%emt 0:01:45]} Rae8 {[%emt 0:01:54]} 19. Bg5 {[%emt 0:05:10]} gxf5 {[%emt 0:03:46]} 20. Rxf5 {[%emt 0:01:55]} (20. Qh4 $1 $11 Nxe4 21. Bxe7 Bd4+ 22. Kh1 Qxe7) 20... Re5 $1 $17 {[%emt 0:00:51]} 21. Ref1 {[%emt 0:09:36]} Rxf5 $1 {[%emt 0:06:07]} (21... Nxe4 $6 22. Bxh6 $11) 22. exf5 {[%emt 0:00:29]} Ne4 {[%emt 0:04:44]} (22... d5 $17 23. Bh4 d4) 23. Nxe4 $1 $11 {[%emt 0:04:27]} Rxe4 {[%emt 0:00:03]} 24. Bd2 {[%emt 0:00:25]} d5 {[%emt 0:02:40]} (24... Bxb2 $2 25. Qxh6+ (25. Bxh6 Kg8 $18) 25... Kg8 26. f6 Bxf6 27. Rxf6 $18 (27. Qxf6 Qe7 $18)) 25. Qh5 {[%emt 0:01:40]} d4 {[%emt 0:05:56]} 26. Qf3 {[%emt 0:07:46]} Qd5 {[%emt 0:02:29]} 27. f6 {[%emt 0:00:12]} Bf8 {[%emt 0:00:38]} 28. Qd3 {[%emt 0:00:26]} Kh8 {[%emt 0:00:43]} 29. c4 {[%emt 0:01:06]} Qe5 {[%emt 0:00:59]} 30. b4 {[%emt 0:02:31]} c6 {[%emt 0:12:35]} (30... c5 $1 $11 {remains equal.} 31. b5 axb5 32. cxb5 Re2) 31. c5 $1 $16 {[%emt 0:01:06]} Qd5 {[%emt 0:01:13]} 32. Qh3 {[%emt 0:01:54]} ({White should try} 32. h3 $16) 32... Qe6 {[%emt 0:00:33]} (32... Kh7 $14) 33. Qxe6 $16 {[%emt 0:01:08]} fxe6 {[%emt 0:01:01]} 34. Rf4 {[%emt 0:06:34]} Rxf4 {[%emt 0:00:03]} 35. Bxf4 {[%emt 0:00:02]} h5 {[%emt 0:00:12] [#]} 36. Kf2 {[%emt 0:00:38]} (36. Be5 $6 Kg8 $14 (36... d3 $2 37. Kf2 $18)) (36. h3 $1 $18 {g4 is the strong threat.} Kg8 37. Kf2) 36... Kg8 {[%emt 0:03:49]} 37. Be5 {[%emt 0:01:18]} Kf7 $2 {[%emt 0:00:16][%mdl 8192]} (37... Bh6 $1 $14) 38. Bxd4 $18 {[%emt 0:01:34]} Kg6 {[%emt 0:00:01]} 39. Kf3 {[%emt 0:00:33]} Kf5 {[%emt 0:00:42]} 40. h3 $2 {[%emt 0:00:25]} (40. Bc3 $18 Bh6 41. h3 (41. f7 Kg6 $16)) 40... e5 $16 {[%emt 0:02:32]} 41. Bc3 {[%emt 0:02:10]} Bh6 $2 {[%emt 0:04:12][%mdl 8192]} (41... Kxf6 $16 42. Ke4 Ke6) 42. f7 $18 {[%emt 0:05:19]} Ke6 {[%emt 0:01:50]} (42... e4+ $142 43. Ke2 Ke6) 43. g4 $18 {[%emt 0:06:31]} hxg4+ {[%emt 0:04:51]} 44. Kxg4 {[%emt 0:00:17]} ({Inferior is} 44. hxg4 Kxf7 45. Ke4 (45. Bxe5 Bd2 $11) 45... Ke6 $11) 44... Kxf7 {[%emt 0:00:54] [#]} 45. Kf5 $1 {[%emt 0:00:10]} ({And not} 45. Bxe5 Bd2 $11) 45... e4 {[%emt 0:00:35]} 46. Kxe4 {[%emt 0:00:08]} Kg6 {[%emt 0:03:05]} 47. Be1 {[%emt 0:02:05]} Bg7 {[%emt 0:00:23]} 48. h4 {[%emt 0:00:16]} Ba1 {[%emt 0:03:19]} 49. h5+ {[%emt 0:00:31]} Kxh5 {[%emt 0:00:04]} 50. Kf5 {[%emt 0:00:04]} Bb2 {[%emt 0:01:09]} 51. Ke6 {[%emt 0:00:06]} Kg4 {[%emt 0:00:03]} 52. Kd7 {[%emt 0:00:24]} Kf3 {[%emt 0:00:03]} 53. Kc8 {[%emt 0:00:17]} Ke2 {[%emt 0:00:04]} 54. Kxb7 {[%emt 0:00:21]} Kxe1 {[%emt 0:00:05]} 55. Kxc6 {[%emt 0:00:13]} Bc3 {[%emt 0:00:30]} 56. b5 {[%emt 0:00:07]} axb5 {[%emt 0:00:03]} 57. Kxb5 {[%emt 0:00:12]} 1-0

[Event "Sardinia World Festival-A 2024"]
[Site "Orosei"]
[Date "2024.04.30"]
[Round "5.3"]
[White "Erdogmus, Yagiz Kaan"]
[Black "Dardha, Daniel"]
[Result "1/2-1/2"]
[ECO "D37"]
[WhiteElo "2540"]
[BlackElo "2630"]
[Annotator "TA"]
[PlyCount "98"]
[EventDate "2024.04.26"]
[EventType "swiss"]
[EventCountry "ITA"]
[SourceTitle "playchess.com"]
[Source "ChessBase"]
[SourceQuality "1"]
[TimeControl "40/5400+30:1800+30"]

{[%evp 22,98,39,34,31,37,31,24,33,10,26,-7,-8,-8,0,-15,-9,-10,-10,-8,-15,-9,-8,-10,-8,-11,-8,-10,0,-10,-8,-9,-5,-29,-31,-60,-8,-8,-8,-8,-8,-8,-8,-8,-12,-12,-12,-81,-13,-13,-13,-13,-13,-29,-21,-31,0,-13,-13,-13,0,0,0,0,0,0,0,0,0,0,0,-20,-20,-20,-20,-20,-20,-20,-20]} 1. d4 {[%emt 0:00:19]} d5 {[%emt 0:00:44]} 2. c4 {[%emt 0:00:08]} e6 {[%emt 0:00:46]} 3. Nc3 {[%emt 0:01:13]} Be7 {[%emt 0:00:21]} 4. Nf3 {[%emt 0:03:06]} Nf6 {[%emt 0:00:15]} 5. Bf4 {[%emt 0:07:53]} O-O {[%emt 0:00:51]} 6. e3 {[%emt 0:01:01]} c5 {[%emt 0:00:51]} 7. dxc5 {[%emt 0:04:04]} Bxc5 {[%emt 0:00:34]} 8. cxd5 {[%emt 0:06:18]} Nxd5 {[%emt 0:01:35]} 9. Nxd5 {[%emt 0:00:53]} exd5 {[%emt 0:00:04]} 10. Bd3 {[%emt 0:12:56]} Bb4+ {[%emt 0:02:54] D37: Queen's Gambit Declined: 5 Bf4.} 11. Nd2 {[%emt 0:01:22]} d4 {[%emt 0:02:55]} 12. Qc2 {[%emt 0:04:48]} Nc6 {[%emt 0:12:58]} 13. O-O {[%emt 0:06:33]} h6 {[%emt 0:02:18]} 14. a3 {[%emt 0:08:31]} Bd6 {[%emt 0:05:27]} 15. Bxd6 {[%emt 0:03:32]} Qxd6 {[%emt 0:01:36]} 16. Ne4 $146 {[%emt 0:02:13]} ({Predecessor:} 16. e4 Ne5 17. Nc4 Nxc4 18. Qxc4 Be6 19. Qb4 Qxb4 20. axb4 Rfc8 21. Rfc1 g5 22. Kf1 Rxc1+ 23. Rxc1 {½-½ Radjabov,T (2756)-Anand,V (2779) Gashimov Memorial 6th 2019 (8)}) 16... Qe7 {[%emt 0:00:26]} 17. Rfe1 {[%emt 0:02:14]} Rd8 {[%emt 0:02:44]} 18. Qc5 {[%emt 0:07:30]} Qxc5 {[%emt 0:04:01]} 19. Nxc5 {[%emt 0:00:04]} b6 {[%emt 0:03:39]} 20. Be4 {[%emt 0:05:50]} bxc5 {[%emt 0:01:12]} 21. Bxc6 {[%emt 0:00:03]} Rb8 {[%emt 0:00:08]} 22. exd4 {[%emt 0:01:18]} cxd4 {[%emt 0:55:11]} 23. b4 {[%emt 0:00:42]} Be6 {[%emt 0:00:00]} 24. Red1 {[%emt 0:02:01]} Rd6 {[%emt 0:00:00]} 25. Rac1 {[%emt 0:06:26]} Rc8 {[%emt 0:00:00]} 26. b5 {[%emt 0:04:30]} d3 {[%emt 0:00:00]} 27. Rc3 {[%emt 0:04:17]} d2 {[%emt 0:00:00]} 28. f3 {[%emt 0:00:50] [#]} a6 {[%emt 0:00:00]} (28... Rd4 $1 $15) 29. a4 $11 {[%emt 0:00:36]} Bd7 {[%emt 0:00:00]} 30. Kf2 {[%emt 0:01:08]} Bxc6 {[%emt 0:00:00]} 31. bxc6 {[%emt 0:00:10]} Rcxc6 {[%emt 0:00:00]} 32. Rxc6 {[%emt 0:00:03]} Rxc6 {[%emt 0:00:00]} 33. Rxd2 {[%emt 0:00:03]} Rc4 {[%emt 0:00:00]} 34. Rd8+ {[%emt 0:03:28]} Kh7 {[%emt 0:00:00]} 35. Rd7 {[%emt 0:00:01]} f6 {[%emt 0:00:00]} 36. g4 {[%emt 0:00:59]} Rxa4 {[%emt 0:00:00]} 37. Ra7 {[%emt 0:00:12]} Ra1 {[%emt 0:00:00]} 38. Kg3 {[%emt 0:00:41]} a5 {[%emt 0:00:00]} 39. h4 {[%emt 0:00:55]} h5 {[%emt 0:00:00]} 40. gxh5 {[%emt 0:00:28]} Kh6 {[%emt 0:01:50]} 41. Kg4 {[%emt 0:30:51]} Rg1+ {[%emt 0:30:48]} 42. Kh3 {[%emt 0:00:36]} Ra1 {[%emt 0:00:52]} 43. Kg4 {[%emt 0:00:00]} a4 {[%emt 0:00:00]} 44. Kf5 {[%emt 0:00:00]} Rf1 {[%emt 0:00:00]} 45. Ra8 {[%emt 0:00:00]} Kh7 {[%emt 0:00:00]} (45... Rxf3+ 46. Kg4) 46. Rxa4 {[%emt 0:00:00]} Rxf3+ {[%emt 0:00:00]} 47. Kg4 {[%emt 0:00:00]} Rc3 {[%emt 0:00:00]} 48. Ra8 $1 {[%emt 0:00:00]} Rc5 {[%emt 0:00:00]} 49. Rb8 {[%emt 0:00:00]} Re5 {[%emt 0:00:00]} 1/2-1/2